bitfinex/quotes_BTCUSD_20220405
["timestamp","ask_amount","ask_price","bid_price","bid_amount"]
[1649179088380,0.16914721,46011.0,46010.0,0.40909229]
[1649179089789,0.16914721,46011.0,46010.0,0.411026]
[1649179090041,0.16914721,46011.0,46010.0,0.711026]
[1649179090138,0.16914721,46011.0,46010.0,0.411026]
[1649179090641,0.16914721,46011.0,46010.0,0.400156]
[1649179091043,0.16914721,46011.0,46010.0,0.700156]
[1649179091144,0.16914721,46011.0,46010.0,0.750156]
[1649179091249,0.15914721,46011.0,46010.0,0.750156]
[1649179092496,0.15914721,46011.0,46010.0,0.450156]
[1649179092801,0.01345844,46009.0,46008.0,0.3407331]
[1649179092898,0.01345844,46009.0,46008.0,0.42960276]
[1649179093201,0.01345844,46009.0,46008.0,0.45059479]
[1649179093682,0.01345844,46009.0,46008.0,0.44866131]
[1649179093790,0.01345844,46009.0,46008.0,0.02099203]
[1649179095834,0.01345844,46009.0,46008.0,0.02504953]
[1649179096639,0.33680644,46009.0,46008.0,0.02504953]
[1649179097037,0.01345844,46009.0,46008.0,0.02504953]
[1649179098685,0.01345844,46009.0,46008.0,0.64839753]
[1649179098790,0.01345844,46009.0,46008.0,0.65926753]
[1649179099086,0.01345844,46009.0,46008.0,0.02504953]
[1649179100446,0.01345844,46009.0,46008.0,0.34839753]
[1649179101672,0.01345844,46009.0,46008.0,0.64839753]
[1649179101873,0.01345844,46009.0,46008.0,0.34839753]
[1649179102723,0.01345844,46009.0,46008.0,0.64839753]
[1649179102824,0.01345844,46009.0,46008.0,0.85926753]
[1649179102928,0.01345844,46009.0,46008.0,0.55926753]
[1649179103423,0.01345844,46009.0,46008.0,0.60296753]
[1649179104934,0.01345844,46009.0,46008.0,0.86784908]
[1649179105030,0.15914721,46011.0,46010.0,0.58985275]
[1649179105130,0.15914721,46011.0,46010.0,0.62171378]
[1649179105231,0.15914721,46011.0,46010.0,0.65454378]
[1649179105729,0.15914721,46011.0,46010.0,0.77454378]
[1649179105831,0.15914721,46011.0,46010.0,0.78541378]
[1649179106230,0.15914721,46011.0,46010.0,0.88541378]
[1649179107243,0.15914721,46011.0,46010.0,0.50803903]
[1649179107334,0.15914721,46011.0,46010.0,0.46433903]
[1649179108670,0.15914721,46011.0,46010.0,0.46839587]
[1649179109073,0.15914721,46011.0,46010.0,0.51839587]
[1649179109175,0.15914721,46011.0,46010.0,0.19504787]
[1649179109273,0.15914721,46011.0,46010.0,0.51839587]
[1649179109374,0.15914721,46011.0,46010.0,0.19504787]
[1649179109476,0.15914721,46011.0,46010.0,0.51839587]
[1649179109725,0.15914721,46011.0,46010.0,0.14504787]
[1649179110032,0.78249521,46011.0,46010.0,0.14504787]
[1649179110224,0.88249521,46011.0,46010.0,0.14504787]
[1649179110326,0.58249521,46011.0,46010.0,0.14504787]
[1649179110626,0.58249521,46011.0,46010.0,0.14352903]
[1649179112035,0.58249521,46011.0,46010.0,0.122538]
[1649179112506,0.88249521,46011.0,46010.0,0.122538]
[1649179112853,0.94336521,46011.0,46010.0,0.122538]
[1649179112954,0.97636954,46011.0,46010.0,0.122538]
[1649179113454,1.39798385,46011.0,46010.0,0.122538]
[1649179113805,1.45233685,46011.0,46010.0,0.122538]
[1649179113903,1.03072254,46011.0,46010.0,0.122538]
[1649179114104,1.20843833,46011.0,46010.0,0.002538]
[1649179114307,1.15604205,46011.0,46010.0,0.002538]
[1649179114959,0.0032308,46009.0,46001.0,0.00049774]
[1649179115057,0.323348,46008.0,46001.0,0.00049774]
[1649179115163,0.3,46007.0,46001.0,0.00049774]
[1649179115257,0.3,46007.0,45997.0,0.1329]
[1649179115258,0.323348,46006.0,45997.0,0.1329]
[1649179115409,0.11087,46008.0,46001.0,0.00049772]
[1649179115509,0.323348,46007.0,46001.0,0.00049772]
[1649179115863,0.11087,46008.0,46002.0,0.26981438]
[1649179116011,0.11087,46008.0,46001.0,0.00049772]
[1649179116286,0.01087,46008.0,46001.0,0.00049772]
[1649179116382,0.0032308,46009.0,45999.0,0.05434372]
[1649179116581,0.323348,46008.0,45999.0,0.05434372]
[1649179116687,0.323348,46008.0,46001.0,0.00049771]
[1649179116983,0.0032308,46009.0,46001.0,0.00049771]
[1649179117084,0.323348,46008.0,46001.0,0.00049771]
[1649179117185,0.323348,46007.0,46001.0,0.00049771]
[1649179117284,0.0032308,46009.0,46001.0,0.00049771]
[1649179117384,0.323348,46008.0,46001.0,0.00049771]
[1649179117585,0.323348,46008.0,45998.0,0.10868039]
[1649179117692,0.634218,46007.0,45997.0,0.0999]
[1649179117840,0.323348,46004.0,46001.0,0.00049771]
[1649179117936,0.623348,46004.0,46001.0,0.00049771]
[1649179118035,0.323348,46004.0,46001.0,0.00049771]
[1649179118785,0.323348,46004.0,45989.0,0.7491]
[1649179118885,0.323348,46004.0,46001.0,0.00254624]
[1649179119088,0.623348,46004.0,46001.0,0.00254624]
[1649179119932,0.323348,46002.0,46001.0,0.00254624]
[1649179120833,0.323348,46002.0,46000.0,0.00272493]
[1649179121234,0.323348,46002.0,46000.0,0.00222721]
[1649179122336,0.41087,46007.0,46000.0,0.00222721]
[1649179122440,0.11087,46007.0,46000.0,0.00222721]
[1649179122738,0.323348,46006.0,46001.0,0.10867745]
[1649179122834,0.00171049,46002.0,46001.0,0.10867745]
[1649179122936,0.04804497,45996.0,45995.0,0.323348]
[1649179123889,0.04804497,45996.0,45995.0,0.59018031]
[1649179126247,0.04304497,45996.0,45995.0,0.59018031]
[1649179127096,0.04590545,45996.0,45995.0,0.59272915]
[1649179127732,0.04590545,45996.0,45995.0,0.32589684]
[1649179130689,0.04590545,45996.0,45995.0,0.33676684]
[1649179130789,0.04590545,45996.0,45995.0,0.68676684]
[1649179130894,0.2795,46010.0,45996.0,1.7]
[1649179130995,0.15914721,46011.0,45999.0,0.00026215]
[1649179131102,0.15914721,46011.0,46000.0,0.334218]
[1649179131213,0.00054737,46008.0,46007.0,0.15375167]
[1649179131311,0.00054737,46008.0,46007.0,0.77709967]
[1649179131478,0.00054737,46008.0,46007.0,0.52079967]
[1649179131663,0.00054737,46008.0,46007.0,0.94627187]
[1649179131760,0.00054737,46008.0,46007.0,1.3273352]
[1649179132064,0.15914721,46011.0,46007.0,0.901863]
[1649179132160,0.15914721,46011.0,46008.0,0.334218]
[1649179132411,0.15914721,46011.0,46008.0,0.677918]
[1649179132412,0.00054741,46010.0,46008.0,0.677918]
[1649179132711,0.00054741,46010.0,46008.0,0.777918]
[1649179132915,0.00054741,46010.0,46008.0,1.49633]
[1649179133111,0.00054741,46010.0,46008.0,1.87772603]
[1649179133315,0.15914721,46011.0,46008.0,1.87772603]
[1649179133413,0.15914721,46011.0,46010.0,0.323348]
[1649179133510,0.15914721,46011.0,46010.0,0.623348]
[1649179133611,0.15969462,46011.0,46010.0,0.727918]
[1649179134460,0.15914721,46011.0,46010.0,0.727918]
[1649179135990,0.1608747,46011.0,46010.0,0.727918]
[1649179136242,0.1608747,46011.0,46010.0,0.7310619]
[1649179136340,0.1608747,46011.0,46010.0,0.8310619]
[1649179137944,0.1592747,46011.0,46010.0,0.8310619]
[1649179138041,0.1557747,46011.0,46010.0,0.8310619]
[1649179138146,0.1551747,46011.0,46010.0,0.8310619]
[1649179138242,0.1334747,46011.0,46010.0,0.8310619]
[1649179138790,0.00105825,46012.0,46011.0,1.7]
[1649179138890,0.00053082,46013.0,46012.0,0.323348]
[1649179138989,0.00053082,46013.0,46012.0,1.298318]
[1649179139188,0.0051,46018.0,46012.0,1.448318]
[1649179139294,0.0011,46018.0,46015.0,0.323348]
[1649179139387,0.0011,46018.0,46017.0,0.323348]
[1649179139495,0.004,46027.0,46019.0,0.323348]
[1649179139587,0.004,46027.0,46021.0,0.323348]
[1649179139686,0.004,46027.0,46021.0,0.623348]
[1649179139787,0.34984185,46025.0,46023.0,0.323348]
[1649179139893,0.004,46029.0,46024.0,0.97496]
[1649179139990,0.004,46029.0,46026.0,0.323348]
[1649179140088,0.004,46029.0,46027.0,0.63433462]
[1649179140339,0.004,46029.0,46027.0,0.67803462]
[1649179141090,0.00178377,46028.0,46027.0,0.67803462]
[1649179141993,0.00178377,46028.0,46027.0,0.05116965]
[1649179142094,0.00178377,46028.0,46027.0,0.37451765]
[1649179143789,0.00178377,46028.0,46027.0,0.64823602]
[1649179144085,0.00178377,46028.0,46027.0,0.00210125]
[1649179144286,0.32513177,46028.0,46027.0,0.00210125]
[1649179144383,0.00178377,46028.0,46027.0,0.00210125]
[1649179145286,0.00178377,46028.0,46027.0,0.32544925]
[1649179145642,0.00178377,46028.0,46027.0,0.00210125]
[1649179145837,0.32513177,46028.0,46027.0,0.00210125]
[1649179145938,0.33599177,46028.0,46027.0,0.00210125]
[1649179146038,0.11264377,46028.0,46027.0,0.00210125]
[1649179146188,0.48599177,46028.0,46027.0,0.00210125]
[1649179146287,0.16264377,46028.0,46027.0,0.00210125]
[1649179146387,0.11264377,46028.0,46027.0,0.00210125]
[1649179146491,0.00079868,46026.0,46025.0,0.00209749]
[1649179146590,0.33500668,46026.0,46025.0,0.00209749]
[1649179146690,0.01165868,46026.0,46025.0,0.00209749]
[1649179146839,0.43500668,46026.0,46025.0,0.00209749]
[1649179147240,0.11165868,46026.0,46025.0,0.00209749]
[1649179147741,0.10079868,46026.0,46025.0,0.00209749]
[1649179147842,0.32414668,46026.0,46025.0,0.00209749]
[1649179148041,0.42414668,46026.0,46025.0,0.00209749]
[1649179149243,0.84267593,46026.0,46025.0,0.00209749]
[1649179149542,0.62414668,46026.0,46025.0,0.00209749]
[1649179149645,0.63500668,46026.0,46025.0,9.749e-05]
[1649179149796,0.323348,46025.0,46020.0,0.00053906]
[1649179149944,0.323348,46021.0,46020.0,0.00053906]
[1649179150042,0.384208,46021.0,46020.0,0.00053906]
[1649179150146,0.734208,46021.0,46006.0,0.31711626]
[1649179150294,0.01086,46020.0,46006.0,0.31711626]
[1649179150393,0.05,46017.0,46006.0,0.31711626]
[1649179150496,0.01087,46016.0,46006.0,0.31711626]
[1649179150702,0.01087,46016.0,46009.0,0.22876169]
[1649179150797,0.1,46020.0,46010.0,0.623348]
[1649179150798,0.05,46017.0,46010.0,0.623348]
[1649179150898,0.01087,46019.0,46010.0,0.623348]
[1649179151097,0.01087,46019.0,46009.0,0.22876169]
[1649179151447,0.01087,46019.0,46009.0,0.33740134]
[1649179151597,0.01087,46019.0,46012.0,0.00053909]
[1649179151796,0.01087,46019.0,46016.0,0.29956041]
[1649179151896,0.01086,46020.0,46012.0,0.00053909]
[1649179152494,0.01086,46020.0,46007.0,0.3]
[1649179152595,0.00345182,46021.0,46014.0,0.323348]
[1649179152698,0.00345182,46021.0,46014.0,0.3]
[1649179152794,0.00345182,46021.0,46014.0,0.00053098]
[1649179152895,0.00345182,46021.0,46014.0,0.30053098]
[1649179152995,0.00345182,46021.0,46013.0,0.36945897]
[1649179153095,0.00345182,46021.0,46016.0,0.28470144]
[1649179153300,0.00345182,46021.0,46013.0,0.31513731]
[1649179153547,0.00345182,46021.0,46005.0,0.19309501]
[1649179153693,0.00345182,46021.0,46004.0,0.0326]
[1649179153790,0.01086,46020.0,46004.0,0.0326]
[1649179153890,0.01086,46020.0,46014.0,0.00276324]
[1649179154684,0.323348,46019.0,46014.0,0.00276324]
[1649179154788,0.373348,46019.0,46014.0,0.00276324]
[1649179154886,0.473348,46019.0,46014.0,0.00276324]
[1649179155537,0.7253046,46019.0,46014.0,0.00276324]
[1649179155636,0.473348,46019.0,46014.0,0.00276324]
[1649179156142,0.468348,46019.0,46014.0,0.00276324]
[1649179156239,0.01087,46018.0,46008.0,0.00315712]
[1649179156344,0.323348,46017.0,46012.0,0.0005686]
[1649179156443,0.323348,46015.0,46012.0,0.0005686]
[1649179156689,0.377694,46013.0,46012.0,0.0005686]
[1649179156789,0.388564,46013.0,46012.0,0.0005686]
[1649179156890,0.532264,46013.0,46012.0,0.0005686]
[1649179157189,0.208916,46013.0,46012.0,0.0005686]
[1649179157294,0.477918,46013.0,46012.0,0.0005686]
[1649179157440,0.323348,46012.0,46008.0,0.00315712]
[1649179157542,0.334218,46012.0,46010.0,0.00056859]
[1649179157641,0.434218,46012.0,46010.0,0.00056859]
[1649179158143,0.484218,46012.0,46010.0,0.00056859]
[1649179158544,0.484218,46012.0,46005.0,0.008696]
[1649179158642,0.484218,46012.0,46008.0,0.28547944]
[1649179158643,0.16087,46012.0,46008.0,0.28547944]
[1649179158742,0.323348,46011.0,46009.0,0.0005686]
[1649179158842,0.423348,46011.0,46009.0,0.0005686]
[1649179159743,0.423348,46011.0,46008.0,0.28547944]
[1649179159844,0.1,46011.0,46008.0,0.28547944]
[1649179159946,0.05,46012.0,46008.0,0.28603773]
[1649179160045,0.323348,46011.0,46008.0,0.28603773]
[1649179160245,0.1,46011.0,46008.0,0.28603773]
[1649179160345,0.323348,46010.0,46008.0,0.28603773]
[1649179160649,0.323348,46010.0,46008.0,0.00055829]
[1649179160997,0.1,46011.0,46001.0,0.0321]
[1649179161096,0.323348,46010.0,46001.0,0.0321]
[1649179161237,0.323348,46010.0,46007.0,0.00053981]
[1649179161584,0.054349,46009.0,46007.0,0.00053981]
[1649179161685,0.323348,46008.0,46007.0,0.00053981]
[1649179162087,0.384648,46008.0,46007.0,0.00053981]
[1649179162189,0.384648,46008.0,46001.0,0.0321]
[1649179162338,0.384648,46008.0,46005.0,0.00053982]
[1649179162437,0.0437,46007.0,46005.0,0.00053982]
[1649179162538,0.323348,46006.0,46005.0,0.00053982]
[1649179162838,0.517048,46006.0,46005.0,0.00053982]
[1649179162937,0.527918,46006.0,46005.0,0.00053982]
[1649179163390,0.582278,46006.0,45999.0,0.0999]
[1649179163494,0.24971695,46005.0,45999.0,0.0999]
[1649179163588,0.24971695,46005.0,46003.0,0.00051382]
[1649179163687,0.0337,46004.0,46003.0,0.00051382]
[1649179163794,0.367918,46004.0,46003.0,0.00051382]
[1649179163890,0.45093396,46004.0,46003.0,0.00051382]
[1649179163996,0.22758596,46004.0,46003.0,0.00051382]
[1649179164241,0.51515244,46004.0,46003.0,0.00051382]
[1649179164340,0.22758596,46004.0,46003.0,0.00051382]
[1649179164541,0.55093396,46004.0,45993.0,0.3]
[1649179164645,0.22758596,46004.0,45993.0,0.3]
[1649179164743,0.01087,46003.0,45993.0,0.3]
[1649179164846,0.0337,46004.0,46001.0,0.00049394]
[1649179165763,0.0337,46004.0,45999.0,0.26400101]
[1649179166063,0.0337,46004.0,46000.0,0.00049394]
[1649179166913,0.03774432,46004.0,46000.0,0.00049394]
[1649179167012,0.03774432,46004.0,45999.0,0.26400101]
[1649179167218,0.03774432,46004.0,46000.0,0.32384435]
[1649179167318,0.323348,46003.0,46000.0,0.00049635]
[1649179167419,0.35635865,46003.0,46000.0,0.00049635]
[1649179167521,0.0437,46002.0,46000.0,0.00049635]
[1649179167621,0.323348,46001.0,46000.0,0.00049635]
[1649179167715,0.00087704,45999.0,45995.0,0.00260167]
[1649179167815,0.323348,45998.0,45995.0,0.00260167]
[1649179167914,0.459948,45998.0,45995.0,0.00260167]
[1649179168019,0.01087,45997.0,45995.0,0.00260167]
[1649179168117,0.323348,45996.0,45995.0,0.00260167]
[1649179168265,1.2910712,45996.0,45995.0,0.00260167]
[1649179168373,1.4410712,45996.0,45995.0,0.00260167]
[1649179168465,1.4519412,45996.0,45995.0,0.00260167]
[1649179168566,1.09428147,45996.0,45995.0,0.00260167]
[1649179168793,1.09428147,45996.0,45981.0,0.30323541]
[1649179168896,0.01087,45995.0,45981.0,0.30323541]
[1649179168994,0.323348,45994.0,45981.0,0.30323541]
[1649179169097,0.05457,45993.0,45981.0,0.30323541]
[1649179169197,0.323348,45992.0,45981.0,0.29823541]
[1649179169297,0.423348,45992.0,45981.0,0.29823541]
[1649179169447,0.517048,45992.0,45982.0,0.22687685]
[1649179169647,0.517048,45992.0,45981.0,0.29823541]
[1649179170355,0.323348,45990.0,45981.0,0.00323541]
[1649179170549,0.423348,45990.0,45981.0,0.00323541]
[1649179170647,0.473348,45990.0,45981.0,0.26514159]
[1649179170749,0.473348,45990.0,45983.0,0.0999]
[1649179170953,0.473348,45990.0,45980.0,0.00388673]
[1649179171550,0.054375,45987.0,45980.0,0.00388673]
[1649179171652,0.323348,45986.0,45980.0,0.00388673]
[1649179172002,0.323348,45986.0,45981.0,0.00056836]
[1649179172105,0.386718,45986.0,45981.0,0.00056836]
[1649179172206,0.0437,45985.0,45981.0,0.00056836]
[1649179172307,0.323348,45984.0,45981.0,0.00056836]
[1649179172446,0.0437,45983.0,45981.0,0.00056836]
[1649179172597,0.37773,45982.0,45981.0,0.00056836]
[1649179172793,0.42143,45982.0,45981.0,0.00056836]
[1649179172993,0.42143,45982.0,45976.0,0.01]
[1649179173244,0.42143,45982.0,45979.0,0.00056837]
[1649179174297,0.42569935,45982.0,45981.0,0.00389521]
[1649179175000,0.37131735,45982.0,45981.0,0.00389521]
[1649179175609,0.52131735,45982.0,45981.0,0.00389521]
[1649179176188,0.57570035,45982.0,45981.0,0.00389521]
[1649179176391,0.58604243,45982.0,45979.0,0.0044862]
[1649179176589,0.58604243,45982.0,45979.0,0.00392817]
[1649179176890,0.69483498,45982.0,45979.0,0.00392817]
[1649179176992,0.323348,45980.0,45979.0,0.00392817]
[1649179177091,0.66724416,45980.0,45979.0,0.00392817]
[1649179177191,0.81094416,45980.0,45979.0,0.00392817]
[1649179177292,0.86094416,45980.0,45979.0,0.00392817]
[1649179177492,1.823348,45979.0,45978.0,8.621e-05]
[1649179177590,0.323348,45979.0,45978.0,8.621e-05]
[1649179177691,0.784218,45979.0,45978.0,8.621e-05]
[1649179177793,0.827918,45979.0,45978.0,8.621e-05]
[1649179177896,0.377739,45978.0,45976.0,0.01]
[1649179178000,0.629228,45977.0,45976.0,0.01]
[1649179178092,0.672928,45977.0,45976.0,0.01]
[1649179178192,0.855768,45977.0,45976.0,0.01]
[1649179178295,1.08715465,45977.0,45976.0,0.01]
[1649179178394,1.41121531,45977.0,45976.0,0.01]
[1649179178896,1.41121531,45977.0,45961.0,0.00190098]
[1649179178997,0.323348,45976.0,45964.0,0.2417965]
[1649179179096,0.01088,45975.0,45964.0,0.2417965]
[1649179179200,0.367048,45974.0,45964.0,0.2417965]
[1649179179300,0.31088,45973.0,45964.0,0.2417965]
[1649179179399,0.323348,45972.0,45961.0,0.00190098]
[1649179179498,0.0437,45972.0,45961.0,0.00190098]
[1649179179598,0.1937,45972.0,45961.0,0.00190098]
[1649179179698,0.1437,45972.0,45961.0,0.00190098]
[1649179179803,0.1937,45972.0,45961.0,0.00190098]
[1649179180488,0.323348,45971.0,45964.0,0.00053252]
[1649179180587,0.1937,45972.0,45964.0,0.00053252]
[1649179180687,0.05,45971.0,45964.0,0.00053252]
[1649179181288,0.0437,45972.0,45964.0,0.00053252]
[1649179181389,0.323348,45971.0,45964.0,0.00053252]
[1649179181489,0.05,45971.0,45962.0,0.27181634]
[1649179181588,0.0437,45972.0,45962.0,0.27181634]
[1649179181688,0.0437,45972.0,45965.0,0.00053251]
[1649179181689,0.323348,45971.0,45965.0,0.00053251]
[1649179181939,0.05,45971.0,45965.0,0.00053251]
[1649179182140,0.05,45971.0,45966.0,0.00354445]
[1649179182240,0.0437,45972.0,45966.0,0.00354445]
[1649179182442,0.323348,45971.0,45966.0,0.00354445]
[1649179182743,0.373348,45971.0,45966.0,0.00354445]
[1649179182841,0.05,45971.0,45967.0,0.00053319]
[1649179182941,0.313348,45970.0,45967.0,0.00053319]
[1649179183046,0.00815528,45964.0,45962.0,0.27181634]
[1649179183345,0.00815528,45964.0,45961.0,0.00190098]
[1649179184286,0.00815528,45964.0,45962.0,0.27749013]
[1649179186790,0.00815528,45964.0,45963.0,0.00265985]
[1649179188989,0.01015269,45964.0,45962.0,0.28068195]
[1649179189090,0.1775718,45995.0,45962.0,0.28068195]
[1649179189091,0.1,45982.0,45963.0,1.71088]
[1649179189191,0.5697,45992.0,45964.0,1.90052336]
[1649179189192,0.10221976,45988.0,45964.0,1.90052336]
[1649179189291,0.1,45991.0,45965.0,0.334411]
[1649179189393,0.1,45991.0,45977.0,0.32405436]
[1649179189491,0.1,45991.0,45983.0,0.323531]
[1649179189587,0.1,45991.0,45984.0,0.3]
[1649179189687,0.0011,45992.0,45985.0,0.323531]
[1649179189792,0.0011,45992.0,45985.0,0.367231]
[1649179189889,0.0011,45992.0,45985.0,0.378101]
[1649179189990,0.0011,45992.0,45985.0,0.478101]
[1649179190190,0.0011,45992.0,45990.0,0.37490374]
[1649179190339,0.0011,45992.0,45991.0,0.623531]
[1649179190441,0.0011,45992.0,45991.0,0.634401]
[1649179190740,0.0011,45992.0,45991.0,0.678101]
[1649179190841,0.0011,45992.0,45991.0,0.778101]
[1649179191309,0.0011,45992.0,45991.0,1.22958391]
[1649179191509,0.0011,45992.0,45991.0,0.05457]
[1649179191609,0.0011,45992.0,45991.0,0.0437]
[1649179192414,0.0011,45992.0,45991.0,0.04376087]
[1649179192609,0.25568661,45992.0,45991.0,0.04376087]
[1649179193161,0.0011,45992.0,45991.0,6.087e-05]
[1649179193365,0.00514035,45992.0,45991.0,0.00409798]
[1649179193662,0.00514035,45992.0,45991.0,0.32762898]
[1649179193966,0.00514035,45992.0,45991.0,0.30409798]
[1649179194259,0.00514035,45992.0,45991.0,0.62762898]
[1649179194965,0.00514035,45992.0,45991.0,0.63849898]
[1649179195850,0.00514035,45992.0,45991.0,0.63349898]
[1649179196351,0.00514035,45992.0,45991.0,0.63355985]
[1649179197060,0.00514035,45992.0,45991.0,1.02915695]
[1649179197157,0.00514035,45992.0,45991.0,0.98825352]
[1649179197353,0.00514035,45992.0,45991.0,0.97725985]
[1649179197454,0.00514035,45992.0,45991.0,0.98825184]
[1649179197655,0.00514035,45992.0,45991.0,0.99228895]
[1649179198157,0.00514035,45992.0,45991.0,0.79228895]
[1649179198354,0.00514035,45992.0,45991.0,0.68129696]
[1649179198456,0.00514035,45992.0,45991.0,0.48129696]
[1649179198558,0.00514035,45992.0,45991.0,0.48123609]
[1649179199479,0.00514035,45992.0,45991.0,0.49222964]
[1649179199581,0.00514035,45992.0,45991.0,0.99222964]
[1649179200634,0.00514035,45992.0,45991.0,0.79222964]
[1649179201483,0.00514035,45992.0,45991.0,0.79120144]
[1649179201688,0.00514035,45992.0,45991.0,0.49120144]
[1649179202441,0.00514035,45992.0,45991.0,0.04674386]
[1649179202546,0.00514035,45992.0,45991.0,0.03530891]
[1649179202645,0.00320379,45992.0,45991.0,0.03530891]
[1649179202943,0.32662679,45992.0,45991.0,0.03530891]
[1649179203243,0.32827142,45992.0,45991.0,0.03530891]
[1649179203441,0.62535191,45992.0,45991.0,0.03530891]
[1649179203642,0.62535191,45992.0,45991.0,0.00300891]
[1649179203843,0.30192891,45992.0,45991.0,0.00300891]
[1649179205498,0.30192891,45992.0,45987.0,0.0087]
[1649179205847,0.30192891,45992.0,45984.0,0.16752057]
[1649179206935,0.0002191,45990.0,45984.0,0.16752057]
[1649179207486,0.0002191,45990.0,45984.0,0.16564159]
[1649179207787,0.0002191,45990.0,45983.0,0.05435899]
[1649179207988,0.30192891,45992.0,45980.0,0.31087]
[1649179208091,0.30192891,45992.0,45980.0,0.41087]
[1649179208194,0.00053462,45989.0,45980.0,0.41087]
[1649179208339,0.00053462,45989.0,45980.0,0.1]
[1649179208640,0.00053462,45989.0,45978.0,0.01087]
[1649179208744,0.00053462,45989.0,45977.0,0.7767]
[1649179208943,0.25617012,45983.0,45977.0,0.7767]
[1649179209045,0.31055212,45983.0,45974.0,0.5]
[1649179209144,0.323423,45982.0,45974.0,0.5]
[1649179209361,0.31055212,45983.0,45974.0,0.5]
[1649179209985,0.31055212,45983.0,45969.0,0.31088]
[1649179210083,0.31055212,45983.0,45974.0,0.1705216]
[1649179210485,0.25617012,45983.0,45975.0,0.62552147]
[1649179210586,0.00023795,45981.0,45976.0,0.323423]
[1649179211337,0.00023795,45981.0,45976.0,0.32530762]
[1649179211438,0.00023795,45981.0,45976.0,0.00188462]
[1649179211588,0.25617012,45983.0,45976.0,0.00188462]
[1649179211790,0.00023795,45981.0,45976.0,0.00188462]
[1649179212738,0.25617012,45983.0,45976.0,0.00188462]
[1649179212938,0.25617012,45983.0,45974.0,0.27654064]
[1649179213039,0.00055203,45981.0,45974.0,0.27654064]
[1649179213144,0.00055203,45981.0,45974.0,0.33090993]
[1649179213987,0.00434291,45989.0,45974.0,0.33090993]
[1649179214189,0.00055203,45980.0,45974.0,0.33090993]
[1649179214388,0.00055203,45980.0,45976.0,0.16741511]
[1649179215141,0.28526412,45987.0,45976.0,0.16741511]
[1649179215241,0.00434291,45989.0,45979.0,0.05436237]
[1649179215340,0.00434291,45989.0,45980.0,0.3]
[1649179215342,0.00138691,45989.0,45980.0,0.3]
[1649179215641,0.00193983,45981.0,45980.0,0.3]
[1649179215742,0.00193983,45981.0,45979.0,0.05436237]
[1649179215941,0.00193983,45981.0,45980.0,0.3]
[1649179216142,0.00193983,45981.0,45979.0,0.05436237]
[1649179216546,0.10872474,45978.0,45977.0,0.3]
[1649179217146,0.10872474,45978.0,45977.0,0.623423]
[1649179217740,0.10822474,45978.0,45977.0,0.623423]
[1649179218134,0.10822474,45978.0,45977.0,0.3]
[1649179218235,0.10822474,45978.0,45977.0,0.623423]
[1649179218341,0.10822474,45978.0,45977.0,0.3]
[1649179219037,0.10822474,45978.0,45977.0,0.623423]
[1649179219644,0.10822474,45978.0,45977.0,0.3]
[1649179219939,0.11155016,45978.0,45977.0,0.30167488]
[1649179220040,0.11155016,45978.0,45977.0,0.62509788]
[1649179220191,0.11155016,45978.0,45977.0,0.30167488]
[1649179220491,0.11155016,45978.0,45977.0,0.62509788]
[1649179221240,0.11155016,45978.0,45977.0,0.30167488]
[1649179222489,0.11155016,45978.0,45977.0,0.72509788]
[1649179223490,0.11155016,45978.0,45977.0,0.40167488]
[1649179223593,0.11155016,45978.0,45977.0,1.03969679]
[1649179223844,0.11172216,45978.0,45977.0,1.03969679]
[1649179224392,0.11172216,45978.0,45977.0,0.71627379]
[1649179225144,0.11172216,45978.0,45977.0,0.40167488]
[1649179225342,0.11172216,45978.0,45977.0,0.00167488]
[1649179226593,0.11172216,45978.0,45977.0,0.32509788]
[1649179226695,0.11172216,45978.0,45976.0,0.38763806]
[1649179226794,0.11172216,45978.0,45976.0,0.28763806]
[1649179226895,0.11172216,45978.0,45976.0,0.38763806]
[1649179227796,0.11172216,45978.0,45976.0,0.10167488]
[1649179227898,0.11172216,45978.0,45977.0,0.323423]
[1649179228098,0.11172216,45978.0,45976.0,0.00167488]
[1649179228298,0.11172216,45978.0,45977.0,0.00167488]
[1649179228602,0.43514516,45978.0,45977.0,0.00167488]
[1649179229592,0.78723892,45978.0,45977.0,0.00167488]
[1649179230189,1.09080781,45978.0,45977.0,0.00167488]
[1649179230391,1.09080781,45978.0,45971.0,0.00217026]
[1649179230490,0.323423,45977.0,45971.0,0.00217026]
[1649179230792,0.323423,45977.0,45971.0,0.00167488]
[1649179230891,0.323423,45977.0,45965.0,1.1276]
[1649179230992,0.4604905,45978.0,45971.0,0.00049589]
[1649179231093,0.323423,45977.0,45971.0,0.00049589]
[1649179232043,0.5148795,45978.0,45966.0,0.4]
[1649179232145,0.5148795,45978.0,45971.0,0.00049589]
[1649179232349,0.323423,45976.0,45973.0,0.00167622]
[1649179232471,0.35645441,45976.0,45973.0,0.00167622]
[1649179232863,0.40645441,45976.0,45973.0,0.00167622]
[1649179233011,0.46084441,45976.0,45973.0,0.00167622]
[1649179233112,0.108795,45975.0,45973.0,0.00167622]
[1649179233211,0.323423,45974.0,45973.0,0.00167622]
[1649179233416,0.55330811,45974.0,45973.0,0.00167622]
[1649179234014,0.49605509,45974.0,45973.0,0.00167622]
[1649179234317,0.054396,45973.0,45971.0,0.0021723]
[1649179234417,0.323423,45972.0,45971.0,0.00167555]
[1649179234670,0.323423,45972.0,45971.0,0.00217288]
[1649179235614,0.323423,45972.0,45971.0,0.00167555]
[1649179236187,0.59846059,45972.0,45971.0,0.00167555]
[1649179236387,0.323423,45972.0,45969.0,0.00217423]
[1649179236587,0.2381417,45971.0,45969.0,0.00217423]
[1649179236687,0.323423,45970.0,45969.0,0.00217423]
[1649179236787,0.323423,45970.0,45969.0,0.00167689]
[1649179238590,0.323423,45970.0,45967.0,0.0021741]
[1649179238788,0.32331086,45970.0,45967.0,0.0021741]
[1649179239191,0.32331086,45970.0,45967.0,0.00167689]
[1649179240637,0.32331086,45970.0,45966.0,0.00238447]
[1649179241538,0.32331086,45970.0,45966.0,0.00188725]
[1649179241837,0.32331086,45970.0,45966.0,0.00238448]
[1649179242542,0.32650505,45970.0,45969.0,0.00188725]
[1649179243541,0.56309582,45970.0,45969.0,0.00188725]
[1649179243690,0.61309582,45970.0,45969.0,0.00188725]
[1649179244391,0.61309582,45970.0,45968.0,0.00307382]
[1649179244392,0.37331086,45970.0,45968.0,0.00307382]
[1649179246496,0.37331086,45970.0,45967.0,0.00307384]
[1649179246497,0.37331086,45970.0,45808.0,24.0]
[1649179246595,0.15302988,45961.0,45955.0,0.01088]